Cogmind - Beta 16 @@@ ROGUE MODE // 2025.12.02 @ 12:51:02 Player: Miles Result: Self-destructed Performance ------------- Evolutions (1) 500 Regions Visited (2) 400 Robots Destroyed (14) 70 Value Destroyed (351) 351 Prototype IDs (1) 20 Alien Tech Used (0) 0 Bonus (0) 0 TOTAL SCORE: 1341 Bonus ------- None Cogmind --------- Core Integrity 120/400 Matter 300/300 Energy 58/100 System Corruption 5% Temperature Warm (165) Movement Core (300) Ox5 Location -9/Materials Parts ------- > --- POWER (1) -------- (None) > --- PROPULSION (3) --- (None) > --- UTILITY (3) ------ Medium Storage Unit Sensor Array Signal Interpreter > --- WEAPON (2) ------- Medium Laser Spread Laser > --- INVENTORY (10) --- Medium Storage Unit Core Shielding Light Armor Plating Light Armor Plating Heavy EM Shotgun Rocket Launcher Rocket Launcher Rocket Launcher Heavy Hammer Peak State ------------ > --- POWER ------------ Light Ion Engine > --- PROPULSION ------- Light Treads Light Treads Aluminum Leg > --- UTILITY ---------- Medium Storage Unit Sensor Array Signal Interpreter > --- WEAPON ----------- Heavy EM Shotgun Heavy Hammer > --- INVENTORY -------- Light Treads Aluminum Leg Medium Storage Unit Signal Interpreter Light Armor Plating Light Armor Plating Heavy EM Pulse Gun Medium Laser Spread Laser Assault Rifle [Rating: 14] Favorites ----------- Power Ion Engine Engine Ion Engine Propulsion Light Treads Treads Light Treads Leg Aluminum Leg Utility Sensor Array Device Sensor Array Storage Medium Storage Unit Processor Signal Interpreter Weapon Assault Rifle Energy Gun Heavy EM Shotgun Ballistic Gun Assault Rifle Impact Weapon Heavy Hammer Build | -11 -10 -9 ------- Run | Yrd Mat Mat Slots Evolved 2 | . . 2 Power . | . . . Propulsion 1 | . . 1 Utility 1 | . . 1 Weapon . | . . . Parts Attached 20 | 7 3 10 Power 2 | 2 . . Engine 2 | 2 . . Core . | . . . Reactor . | . . . Propulsion 6 | 2 . 4 Treads 4 | 2 . 2 Leg 2 | . . 2 Wheel . | . . . Hover . | . . . Flight . | . . . Utility 4 | 1 2 1 Device 1 | . 1 . Storage 2 | 1 1 . Processor 1 | . . 1 Hackware . | . . . Protection . | . . . Artifact . | . . . Weapon 8 | 2 1 5 Energy Gun 4 | . . 4 Energy Cannon . | . . . Ballistic Gun 2 | 2 . . Ballistic Cannon . | . . . Launcher . | . . . Special Weapon . | . . . Impact Weapon 2 | . 1 1 Slashing Weapon . | . . . Piercing Weapon . | . . . Special Melee Weapon . | . . . Unidentified Prototypes 1 | . . 1 Parts Lost 7 | . . 7 Power 2 | . . 2 Propulsion 4 | . . 4 Utility . | . . . Weapon 1 | . . 1 Highest Loss Streak 3 | . . 3 To Critical Strikes . | . . . Average Backups 8 | 2 8 9 Power . | . 1 . Propulsion 1 | 1 2 1 Utility 2 | . 1 3 Weapon 3 | . 3 4 Tool/Special . | . . . Unused Backups 12 | . . 12 Power . | . . . Propulsion . | . . . Utility 5 | . . 5 Weapon 7 | . . 7 Tool/Special . | . . . Average Slot Usage (%) 94 | . 95 93 Engine 10 | . 14 9 Treads 21 | . 28 18 Leg 7 | . . 10 Device 10 | . 10 11 Storage 11 | . 14 11 Processor 7 | . . 11 Energy Gun 4 | . . 6 Ballistic Gun 12 | . 26 5 Impact Weapon 6 | . 1 8 Peak Build Rating 14 | 6 8 14 Average Rating 9 | 4 7 11 On Entrance 4 | . 6 8 Avg Prop Armor Cover (%) 7 | . . 7 Naked Turns . | . . . Heaviest Build 21 | 14 20 21 Greatest Support 43 | 40 40 43 Greatest Overweight (x) 6 | . . 6 Average Overweight (x) . | . . . Largest Inventory Capacity 10 | 8 10 10 Average Capacity 9 | 6 8 10 Most Carried 10 | 5 10 10 Average Carried 8 | 2 8 9 Final Capacity 10 | 8 10 10 Final Carried 10 | 4 10 9 Class Distribution -------------------- 100% | Mutant Dominant Class ---------------- Mutant | -10/Materials Mutant | -9/Materials Resources | -11 -10 -9 ----------- Run | Yrd Mat Mat Matter Collected 548 | 180 250 118 Remotely . | . . . Salvage Created 426 | . 181 245 Parts 28 | . 11 17 Haulers Intercepted . | . . . Recyclers Shooed . | . . . Parts Field Recycled . | . . . Retrieved Matter . | . . . Parts Self-Destructed . | . . . Prevented . | . . . Parts Restored . | . . . Kills | -11 -10 -9 ------- Run | Yrd Mat Mat Combat Hostiles Destroyed 14 | . 7 7 Melee 3 | . . 3 Guns 11 | . 7 4 Classes Destroyed 3 | . 2 1 Swarmer 7 | . 4 3 Grunt 4 | . 3 1 Sentry 3 | . . 3 Best Kill Streak 3 | . 3 3 Combat Bots Only 3 | . 3 3 Max Kills in Single Turn 1 | . 1 1 Gunslinging . | . . . Exploded . | . . . Melee 1 | . . 1 Uniques/NPCs Destroyed . | . . . Combat | -11 -10 -9 -------- Run | Yrd Mat Mat Hostile Shots Fired 160 | . 68 92 Missed 39 | . 22 17 Hits 121 | . 46 75 Melee 2 | . . 2 Projectile 119 | . 46 73 Critical Strikes 4 | . . 4 Damage Taken 1348 | . 402 946 Core 320 | . 40 280 Absorbed by Shields . | . . . Core Remaining (%) 92 | 100 84 . Volleys Fired 30 | . 20 10 Largest 2 | . 2 2 Hottest 115 | . 40 115 Shots Fired 55 | . 40 15 Gun 55 | . 40 15 Cannon . | . . . Launcher . | . . . Special . | . . . Kinetic 40 | . 40 . Thermal 10 | . . 10 Explosive . | . . . Electromagnetic 5 | . . 5 Robot Hit Streak 4 | . 4 4 Robot Miss Streak 3 | . 3 3 Penetration Max . | . . . Secondary Targets 1 | . 1 . Max Gunslinging Chain 1 | . 1 . Shots Hit Robots 37 | . 22 15 Core Hits 20 | . 9 11 Critical Kills 1 | . . 1 Critical Parts Destroyed . | . . . Critical Strikes 1 | . . 1 Smash 1 | . . 1 Melee Attacks 10 | . 1 9 Impact 10 | . 1 9 Slashing . | . . . Piercing . | . . . Sneak Attacks . | . . . Combat Hostiles . | . . . Follow-up Attacks . | . . . Damage Inflicted 617 | . 266 351 Guns 408 | . 266 142 Cannons . | . . . Explosions . | . . . Melee 209 | . . 209 Ramming . | . . . Kinetic 266 | . 266 . Thermal 81 | . . 81 Explosive . | . . . Electromagnetic 61 | . . 61 Impact 209 | . . 209 Slashing . | . . . Piercing . | . . . Highest Corruption 5 | . . 5 Average Corruption 5 | . . 5 Corruption Purged . | . . . Corruption Blocked . | . . . Effects 16 | . . 16 Message Errors 3 | . . 3 Matter Fused 4 | . . 4 Heat Flow Errors 1 | . . 1 Energy Discharges 5 | . . 5 Parts Fused 1 | . . 1 Data Loss (minor) 2 | . . 2 Overload Shots . | . . . Overflow Damage 19 | . . 19 Projectiles . | . . . Explosions . | . . . Melee 19 | . . 19 Knockbacks . | . . . Impact . | . . . Kinetic . | . . . Secondary . | . . . Self-Inflicted Damage . | . . . Shots . | . . . Rammed . | . . . Targets Rammed . | . . . Kicked . | . . . Crushed . | . . . Highest Temperature 304 | . 5 304 Average Temperature 90 | . 5 94 Received Heat Transfer 387 | . 96 291 Siege Activations . | . . . Martial Activations . | . . . Shielding Activations . | . . . Robots Disrupted . | . . . Combat Hostiles . | . . . Robots Corrupted . | . . . Combat Hostiles . | . . . Parts Fried . | . . . Impact Corruptions 1 | . . 1 Robots Melted . | . . . Combat Hostiles . | . . . Parts Melted . | . . . Heat Transferred 166 | . . 166 Parts Sabotaged . | . . . Parts Stolen . | . . . Parts Stripped . | . . . Power Chain Reactions . | . . . Alert | -11 -10 -9 ------- Run | Yrd Mat Mat Maximum Alert Level . | . . . Low Security (%) 100 | 100 100 100 Level 1 . | . . . Level 2 . | . . . Level 3 . | . . . Level 4 . | . . . Level 5 . | . . . High Security . | . . . Max Security . | . . . Peak Influence 122 | . 122 79 Initial 51 | . . 51 Average 15 | . 15 17 Influence Increases 392 | . 175 217 Destroy 0b10 Robot/C 280 | . 140 140 Destroy Leader 70 | . 20 50 Successful Hack 12 | . . 12 Disable Machine 15 | . 15 . Partial Spotted 15 | . . 15 Influence Decreases 349 | . 53 296 Entered New Map 71 | . . 71 Time Decay 238 | . 53 185 Lost Part 40 | . . 40 Squads Dispatched 3 | . 1 2 Investigation 1 | . 1 . Extermination . | . . . Reinforcement 2 | . . 2 Assault . | . . . Garrison . | . . . Intercept . | . . . Searches Triggered . | . . . Construction Impeded . | . . . Haulers Reinforced . | . . . Active Scanning Responses . | . . . Cargo Convoy Interrupts . | . . . Stealth | -11 -10 -9 --------- Run | Yrd Mat Mat Distress Signals 2 | . 1 1 Communications Jammed . | . . . Distress Signals . | . . . Times Spotted 24 | . 8 16 Peak Tracking Total 5 | . 4 5 Tactical Retreats . | . . . Traps | -11 -10 -9 ------- Run | Yrd Mat Mat Traps Triggered 2 | . 1 1 Indirectly . | . . . Trap Hack Attempts . | . . . Triggered . | . . . Disarmed . | . . . Reprogrammed . | . . . Reused . | . . . Traps Extracted . | . . . Installed . | . . . Triggered . | . . . Machines | -11 -10 -9 ---------- Run | Yrd Mat Mat Machines Disabled 1 | . 1 . Max in Single Turn 1 | . 1 . Machines Repaired . | . . . Machines Dismantled . | . . . Machines Sabotaged . | . . . Overloaded Fab Kills . | . . . Hacking | -11 -10 -9 --------- Run | Yrd Mat Mat Machines Accessed 1 | . . 1 Terminals . | . . . Fabricators . | . . . Repair Stations . | . . . Recycling Units . | . . . Scanalyzers 1 | . . 1 Garrison Access . | . . . Total Hacks 3 | . . 3 Successful 1 | . . 1 Failed 2 | . . 2 Catastrophic . | . . . Database Lockouts . | . . . Manual . | . . . Terminals . | . . . Fabricators . | . . . Repair Stations . | . . . Recycling Units . | . . . Scanalyzers 3 | . . 3 Garrison Access . | . . . Terminal Hacks . | . . . Fabricator Hacks . | . . . Repair Station Hacks . | . . . Recycling Unit Hacks . | . . . Scanalyzer 1 | . . 1 Insert Component 1 | . . 1 Garrison Access Hacks . | . . . Unauthorized Hacks . | . . . Terminals . | . . . Fabricators . | . . . Repair Stations . | . . . Recycling Units . | . . . Scanalyzers . | . . . Garrison Access . | . . . Data Cores Recovered . | . . . Used . | . . . Hacking Detections . | . . . Full Trace Events . | . . . Feedback Events . | . . . Feedback Blocked . | . . . Robot Schematics Acquired . | . . . Robots Built . | . . . Authchips . | . . . Time . | . . . Total Robot Build Rating . | . . . Part Schematics Acquired . | . . . Parts Built . | . . . Authchips . | . . . Time . | . . . Total Part Build Rating . | . . . Part Studies Acquired . | . . . Parts Repaired . | . . . Time . | . . . Parts Recycled . | . . . Recycled Matter . | . . . Retrieved Matter . | . . . Retrieved Components . | . . . Parts Scanalyzed 1 | . . 1 Part Schematics Acquired . | . . . Parts Damaged 1 | . . 1 Bothacking | -11 -10 -9 ------------ Run | Yrd Mat Mat Used RIF Installer . | . . . Robots Hacked . | . . . Non-combat . | . . . Combat . | . . . Robot Hacks Applied . | . . . Relay Couplers Released . | . . . Fabnet Peak Effective % . | . . . Robots Rewired . | . . . Allies Hacked . | . . . Hacks Repelled . | . . . Allies | -11 -10 -9 -------- Run | Yrd Mat Mat Total Allies . | . . . Largest Group . | . . . Highest-Rated Group . | . . . Highest-Rated Ally . | . . . Total Orders . | . . . Ally Attacks . | . . . Total Damage . | . . . Kills . | . . . Allies Corrupted . | . . . Allies Melted . | . . . Intel | -11 -10 -9 ------- Run | Yrd Mat Mat Active Infowar (turns) 1195 | . 300 895 Sensors 1195 | . 300 895 Robot Analysis Total . | . . . Derelict Logs Recovered . | . . . Drone Launches . | . . . Drone Recoveries . | . . . Exploration | -11 -10 -9 ------------- Run | Yrd Mat Mat Turns Passed 1420 | 111 414 895 Spaces Moved 747 | 63 213 471 Core 7 | 6 . 1 Treads 663 | 57 213 393 Legs 77 | . . 77 Wheels . | . . . Hover . | . . . Flight . | . . . Fastest Speed 50 | 50 160 160 Average Speed 163 | 149 160 167 Slowest Speed 350 | 160 160 350 Overloaded Moves . | . . . Propulsion Burnouts . | . . . Robots Hopped . | . . . Potential Cave-ins . | . . . Cave-ins Triggered . | . . . Exploration Rate (%) 26 | 5 33 42 Regions Visited 2 Branch Regions . Pre-discovered Areas . | . . . Known Exits Taken . | . . . Unknown Exits Taken 2 | 1 1 . Scrap Searched . | . . . Spaces Dug . | . . . Terrain Destroyed . | . . . Melee . | . . . Projectile . | . . . AOE . | . . . Terrain Rammed . | . . . Walls Destroyed . | . . . Machines Disabled . | . . . Actions | -11 -10 -9 --------- Run | Yrd Mat Mat Total 876 | 79 244 553 Wait 25 | . . 25 Move 745 | 62 212 471 Hop . | . . . Pick Up 30 | 10 6 14 Fast Attach 2 | . 1 1 Attach 13 | 6 . 7 Detach . | . . . Swap 8 | 1 3 4 Drop 13 | . 1 12 Fire 30 | . 20 10 Melee 10 | . 1 9 Ram . | . . . Kick . | . . . Crush . | . . . Escape Stasis . | . . . Rewire . | . . . Trap . | . . . Miscellaneous . | . . . Route ------- -11/Scrapyard -10/Materials -9/Materials (discovered 1 exit: [*Mat]) History --------- Turn | Location | Event 10 | -11/Scrapyard | Discovered new exit (range 14) 112 | -11/Scrapyard | Entered Materials 308 | -10/Materials | Build established: Mutant 420 | -10/Materials | Discovered new exit (range 9) 526 | -10/Materials | Entered another Materials area 526 | -9/Materials | Evolved 2 slots: Propulsion x1, Utility x1 1407 | -9/Materials | Discovered new exit (range 7) 1417 | -9/Materials | Core integrity fell below 50% 1421 | -9/Materials | Self-destructed Last Messages --------------- 01389_ Y-45 Defender destroyed. 01391_ Lgt. Ion Engine destroyed. 01394_ Critical hit (Burn: +37). 01394_ K-01 Serf collects debris. 01404_ M-13 Machinist destroyed. 01404_ K-01 Serf collects debris. 01407_ Lgt. Treads destroyed. 01407_ EXIT=FOUND 01408_ K-01 Serf collects debris. 01409_ System corrupted: Component data lost. 01409_ Acquired 16 matter. 01410_ Critical hit (Burn: +37). 01412_ K-01 Serf collects debris. 01412_ C-30 ARC bursts open, deploying its payload. 01412_ L-31 Rogue unfolds itself. 01412_ G-34 Mercenary unfolds itself. 01412_ Aluminum Leg destroyed. 01416_ Critical hit (Burn: +37). 01416_ K-01 Serf collects debris. Map ----- +----------------------------------------------------+ | | | | | | | | | | | | | | | | | | | | | | | ?????????????????????????????????????????????????? | | ?????????????????????????????????????????????????? | | ???????????????????######????????????????????????? | | ???????????????????# ########################?? | | ???????????????????# [+% #?? | | ???????????????????# ##################### #?? | | ???????????????????# = #?????????????# # ##? | | ???????????????????# #?????????????# + + | | ???????????????????# #??###????????# # # | | ???????????????????# #? #????????# # #? | | ???????????????????# #? < #????????# # ## | | ?????????????####### #? #????????# + | | ?????????????# ###+### #????????# # | | ?????????????# * #????????# # | | ?????????????# %* k l@Y + ??# ]# | | ?????????????#[ ! %g =g! # """????# | | ?????????????# ####### #????????# | | ?????????????## ##?????? #????????# | | ???????????? #??????? #????????#### #### | | ????????? #??????? #?????????########## | | ??????? +???????? #?????????# # | | ????? #???????? ?????????+ #= | | ????? #???????? ????????# %+= | | ???? """ """ #???????? ????????# =#% | | ??????"" """ #????????? ???????# #[ | | ??????"" """ #????????? ???????# ## | | ??????????? #????????? #??????# ## | | ??????????? #????????? ??????# ## | | ???????????"" ??????????? ?????????# ## | | ????????????" ?????????????????????###+####### | | ????????????? ???????????????????????# #?????# | | ??????????????? ???????????????????????# #?????# | | ?????????????????????????????????????????# #?????# | | ??????????????????????????????#####+###### #?????# | | ??????????????????????????????# + #?????# | | ??????????????????????????????# ## #?????# | | ??????????????????????????????# """ ## #?????# | | ??????????????????????????????+ """"" ## +????# | | ??????????????????????????????# """"" ## #????? | +----------------------------------------------------+ Best States ------------- Heat Dissipation 28 Energy Generation 10 Energy Capacity 250 Matter Stores 300 Matter Capacity 300 Sight Range 16 Robot Scan Range 14 Terrain Scan Density 10 Evasion (%) 40 Recoil Reduction 2 Item Schematics ----------------- None Robot Schematics ------------------ None Fabricated ------------ Nothing Repaired ---------- Nothing Studied --------- None Alien Tech Used ----------------- None Achievements -------------- None Challenges ------------ None Game ------ Seed ExpertScatterExpander Manual? 0 Play Time 00:13:25 Cumulative 30.3 hours Start 2025.12.02 @ 12:42:41 End 2025.12.02 @ 12:51:02 Sessions 1 Manual Loads 0 Difficulty Rogue Special Mode None Game No. 64 Rogue 64 Adventurer 0 Explorer 0 Win Type - Total 0 Types 0/0/0/0/0/0/0/0/0/0 Lore% 8 Gallery% 25 Achievement% 16 Wizard Run 0 Options --------- Layout 1 ASCII 0 Keyboard 0 Movement Mouse Keybinds 0 Fullscreen 1 Font 24/Smallcaps Map View 50x35 Zoom Use 0% Tactical HUD 1 Map Filters NONE Filters NONE Steam 1 RUN: 8dd5575f-e7d2-4e21-9c7c-0d16af10c413